fUSD/lending_fUSD_20260521
["ID","MTS","AMOUNT","RATE_DAILY","PERIOD"]
[422775582,1779378644000,-1156.95,0.00024658,2]
[422775554,1779378644000,-151.0,0.00024658,2]
[422775595,1779378644000,-1100.0,0.000249,9]
[422775593,1779378644000,-300.0,0.000249,10]
[422775612,1779378644000,-7227.94914184,0.00025,2]
[422775608,1779378644000,-619.2867286,0.00025,2]
[422775591,1779378644000,-1712.93078311,0.0002486,2]
[422775586,1779378644000,-150.0,0.000248,2]
[422775584,1779378644000,-1000.0,0.00024658,2]
[422775610,1779378644000,-3085.68758496,0.00025,2]
[422775604,1779378644000,-1809.78961192,0.00025,2]
[422775606,1779378644000,-540.0,0.00025,2]
[422775601,1779378644000,-210.38423507,0.00025,2]
[422775597,1779378644000,-200.0,0.00025,2]
[422775599,1779378644000,-1129.46472604,0.00025,2]
[422775589,1779378644000,-200.0,0.000248,10]
[422775756,1779378645000,-1331.3111928,0.00027397,7]
[422775776,1779378645000,-576.240632,0.00027397,2]
[422775765,1779378645000,-576.240632,0.00027397,2]
[422775769,1779378645000,-576.240632,0.00027397,2]
[422775752,1779378645000,-3634.0,0.00027298,2]
[422775778,1779378645000,-576.240632,0.00027397,2]
[422775749,1779378645000,-418.0,0.00027298,2]
[422775747,1779378645000,-625.0,0.00027298,2]
[422775745,1779378645000,-1354.0,0.00027298,2]
[422775758,1779378645000,-1500.0,0.00027397,2]
[422775754,1779378645000,-4510.56905239,0.0002739,7]
[422775784,1779378645000,-576.240632,0.00027397,2]
[422775767,1779378645000,-576.240632,0.00027397,2]
[422775761,1779378645000,-163.64,0.00027397,31]
[422775774,1779378645000,-576.240632,0.00027397,2]
[422775771,1779378645000,-576.240632,0.00027397,2]
[422775734,1779378645000,-621.78829552,0.0002705,2]
[422775788,1779378645000,-576.240632,0.00027397,2]
[422775786,1779378645000,-576.240632,0.00027397,2]
[422775791,1779378645000,-576.240632,0.00027397,2]
[422775793,1779378645000,-576.240632,0.00027397,2]
[422775795,1779378645000,-576.240632,0.00027397,2]
[422775797,1779378645000,-576.240632,0.00027397,2]
[422775780,1779378645000,-576.240632,0.00027397,2]
[422775763,1779378645000,-300.0,0.00027397,2]
[422775743,1779378645000,-3296.10259626,0.0002723,42]
[422775709,1779378645000,-190.82778755,0.00026696,2]
[422775738,1779378645000,-1980.8648231,0.00027052,2]
[422775782,1779378645000,-576.240632,0.00027397,2]
[422775683,1779378645000,-296.0,0.000261,2]
[422775687,1779378645000,-22490.0,0.000261,2]
[422775685,1779378645000,-374.0,0.000261,2]
[422775689,1779378645000,-2250.58853386,0.000261,2]
[422775699,1779378645000,-1910.18787185,0.00026504,2]
[422775695,1779378645000,-202.0,0.000261,2]
[422775693,1779378645000,-186.0,0.000261,2]
[422775691,1779378645000,-366.0,0.000261,2]
[422775704,1779378645000,-515.0,0.0002659,2]
[422775702,1779378645000,-523.0,0.0002659,2]
[422775696,1779378645000,-190.99975229,0.000261,2]
[422775698,1779378645000,-3193.7,0.00026296,2]
[422775697,1779378645000,-200.0,0.00026143,2]
[422775722,1779378645000,-2000.0,0.00027,2]
[422775716,1779378645000,-159.0,0.00026767,2]
[422775725,1779378645000,-565.42,0.00027,2]
[422775718,1779378645000,-2153.45580504,0.00026899,40]
[422775711,1779378645000,-196.0,0.00026704,2]
[422775720,1779378645000,-200.0,0.00026941,2]
[422775714,1779378645000,-1967.0,0.0002676,2]
[422775727,1779378645000,-207.0,0.00027,21]
[422775729,1779378645000,-200.0,0.00027,2]
[422775736,1779378645000,-747.80937859,0.0002705,2]
[422775741,1779378645000,-159.99701366,0.00027123,20]
[422775732,1779378645000,-2577.27033,0.0002701,2]
[422775707,1779378645000,-961.0,0.0002659,2]
[422775799,1779378645000,-576.240632,0.00027397,2]
[422775815,1779378645000,-151.0,0.00027397,2]
[422775866,1779378645000,-2022.891238,0.00027397,2]
[422775872,1779378645000,-2022.891238,0.00027397,2]
[422775875,1779378645000,-2022.891238,0.00027397,2]
[422775877,1779378645000,-2022.891238,0.00027397,2]
[422775879,1779378645000,-2022.891238,0.00027397,2]
[422775898,1779378645000,-2022.891238,0.00027397,2]
[422775888,1779378645000,-2022.891238,0.00027397,2]
[422775892,1779378645000,-2022.891238,0.00027397,2]
[422775896,1779378645000,-2022.891238,0.00027397,2]
[422775881,1779378645000,-2022.891238,0.00027397,2]
[422775890,1779378645000,-2022.891238,0.00027397,2]
[422775894,1779378645000,-2022.891238,0.00027397,2]
[422775884,1779378645000,-2022.891238,0.00027397,2]
[422775900,1779378645000,-2022.891238,0.00027397,2]
[422775904,1779378645000,-1608.580739,0.00027397,2]
[422775902,1779378645000,-2022.891246,0.00027397,2]
[422775909,1779378645000,-1608.580739,0.00027397,2]
[422775907,1779378645000,-1608.580739,0.00027397,2]
[422775920,1779378645000,-1608.580739,0.00027397,2]
[422775911,1779378645000,-1608.580739,0.00027397,2]
[422775922,1779378645000,-1608.580739,0.00027397,2]
[422775918,1779378645000,-1608.580739,0.00027397,2]
[422775913,1779378645000,-1608.580739,0.00027397,2]
[422775915,1779378645000,-1608.580739,0.00027397,2]
[422775801,1779378645000,-576.240632,0.00027397,2]
[422775870,1779378645000,-2022.891238,0.00027397,2]
[422775862,1779378645000,-2022.891238,0.00027397,2]
[422775886,1779378645000,-2022.891238,0.00027397,2]
[422775868,1779378645000,-2022.891238,0.00027397,2]
[422775817,1779378645000,-151.0,0.00027397,2]
[422775864,1779378645000,-300.195477,0.00027397,2]
[422775804,1779378645000,-576.240632,0.00027397,2]
[422775806,1779378645000,-576.240636,0.00027397,2]
[422775819,1779378645000,-229.598305,0.00027397,2]
[422775821,1779378645000,-1466.16,0.00027397,2]
[422775808,1779378645000,-151.0,0.00027397,2]
[422775824,1779378645000,-151.0,0.00027397,2]
[422775813,1779378645000,-151.0,0.00027397,2]
[422775826,1779378645000,-151.0,0.00027397,2]
[422775828,1779378645000,-151.0,0.00027397,2]
[422775830,1779378645000,-151.0,0.00027397,2]
[422775832,1779378645000,-151.0,0.00027397,2]
[422775811,1779378645000,-151.0,0.00027397,2]
[422775857,1779378645000,-151.0,0.00027397,2]
[422775860,1779378645000,-2022.891238,0.00027397,2]
[422775834,1779378645000,-151.0,0.00027397,2]
[422775855,1779378645000,-151.0,0.00027397,2]
[422775851,1779378645000,-151.0,0.00027397,2]
[422775853,1779378645000,-151.0,0.00027397,2]
[422775848,1779378645000,-151.0,0.00027397,2]
[422775844,1779378645000,-151.0,0.00027397,2]
[422775840,1779378645000,-151.0,0.00027397,2]
[422775846,1779378645000,-151.0,0.00027397,2]
[422775836,1779378645000,-151.0,0.00027397,2]
[422775842,1779378645000,-151.0,0.00027397,2]
[422775838,1779378645000,-151.0,0.00027397,2]
[422776010,1779378646000,-887.240915,0.00027397,2]
[422776016,1779378646000,-887.240915,0.00027397,2]
[422776008,1779378646000,-887.240915,0.00027397,2]
[422776006,1779378646000,-1156.95,0.00027397,2]
[422776004,1779378646000,-160.313237,0.00027397,2]
[422775999,1779378646000,-151.0,0.00027397,2]
[422775989,1779378646000,-1170.73602504,0.00027397,2]
[422775987,1779378646000,-1170.736035,0.00027397,2]
[422775991,1779378646000,-151.0,0.00027397,2]
[422775985,1779378646000,-1170.736035,0.00027397,2]
[422776014,1779378646000,-887.240915,0.00027397,2]
[422775993,1779378646000,-151.0,0.00027397,2]
[422776012,1779378646000,-887.240915,0.00027397,2]
[422776042,1779378646000,-887.240915,0.00027397,2]
[422776020,1779378646000,-887.240915,0.00027397,2]
[422776018,1779378646000,-887.240915,0.00027397,2]
[422776024,1779378646000,-887.240915,0.00027397,2]
[422776027,1779378646000,-887.240915,0.00027397,2]
[422776029,1779378646000,-887.240915,0.00027397,2]
[422776031,1779378646000,-887.240915,0.00027397,2]
[422776033,1779378646000,-887.240915,0.00027397,2]
[422776036,1779378646000,-887.240915,0.00027397,2]
[422776040,1779378646000,-887.240915,0.00027397,2]
[422776038,1779378646000,-887.240915,0.00027397,2]
[422776044,1779378646000,-887.240915,0.00027397,2]
[422776002,1779378646000,-151.0,0.00027397,2]
[422776022,1779378646000,-887.240915,0.00027397,2]
[422775983,1779378646000,-1170.736035,0.00027397,2]
[422775926,1779378646000,-1608.580739,0.00027397,2]
[422775995,1779378646000,-151.0,0.00027397,2]
[422775924,1779378646000,-1608.580739,0.00027397,2]
[422775928,1779378646000,-1608.580739,0.00027397,2]
[422775930,1779378646000,-1608.580739,0.00027397,2]
[422775933,1779378646000,-1608.580739,0.00027397,2]
[422775944,1779378646000,-1608.580734,0.00027397,2]
[422775951,1779378646000,-1170.736035,0.00027397,2]
[422775946,1779378646000,-1170.736035,0.00027397,2]
[422775948,1779378646000,-1170.736035,0.00027397,2]
[422775935,1779378646000,-1608.580739,0.00027397,2]
[422775936,1779378646000,-1608.580739,0.00027397,2]
[422775940,1779378646000,-1608.580739,0.00027397,2]
[422775942,1779378646000,-1608.580739,0.00027397,2]
[422775938,1779378646000,-1608.580739,0.00027397,2]
[422775953,1779378646000,-1170.736035,0.00027397,2]
[422775955,1779378646000,-1170.736035,0.00027397,2]
[422775958,1779378646000,-1170.736035,0.00027397,2]
[422775960,1779378646000,-1170.736035,0.00027397,2]
[422775966,1779378646000,-1170.736035,0.00027397,2]
[422775968,1779378646000,-1170.736035,0.00027397,2]
[422775962,1779378646000,-1170.736035,0.00027397,2]
[422775976,1779378646000,-1170.736035,0.00027397,2]
[422775972,1779378646000,-1170.736035,0.00027397,2]
[422775970,1779378646000,-1170.736035,0.00027397,2]
[422776051,1779378646000,-28843.96,0.00027397,10]
[422775974,1779378646000,-1170.736035,0.00027397,2]
[422775978,1779378646000,-1170.736035,0.00027397,2]
[422775980,1779378646000,-1170.736035,0.00027397,2]
[422775997,1779378646000,-151.0,0.00027397,2]
[422776049,1779378646000,-887.240908,0.00027397,2]
[422776116,1779378646000,-2314.0,0.00027639,3]
[422776053,1779378646000,-150.0,0.00027397,2]
[422776115,1779378646000,-1401.41,0.00027613,30]
[422776112,1779378646000,-1434.51,0.00027613,30]
[422776129,1779378646000,-623.68,0.00027643,2]
[422776122,1779378646000,-1346.25,0.00027643,2]
[422776133,1779378646000,-1401.41,0.00027644,2]
[422776126,1779378646000,-1347.46,0.00027643,2]
[422776131,1779378646000,-1434.51,0.00027644,2]
[422776125,1779378646000,-624.08,0.00027643,2]
[422776121,1779378646000,-304.67,0.00027642,2]
[422776137,1779378646000,-304.67,0.00027672,7]
[422776139,1779378646000,-1346.25,0.00027673,7]
[422776141,1779378646000,-624.08,0.00027673,7]
[422776110,1779378646000,-623.68,0.00027612,30]
[422776144,1779378646000,-1347.46,0.00027673,7]
[422776148,1779378646000,-1434.51,0.00027674,7]
[422776146,1779378646000,-623.68,0.00027673,7]
[422776152,1779378646000,-1309.77,0.000277,7]
[422776150,1779378646000,-1401.41,0.00027674,7]
[422776154,1779378646000,-303.42,0.00027703,30]
[422776156,1779378646000,-304.67,0.00027703,30]
[422776161,1779378646000,-1346.25,0.00027704,30]
[422776159,1779378646000,-1434.51,0.00027704,30]
[422776163,1779378646000,-624.08,0.00027704,30]
[422776169,1779378646000,-623.68,0.00027704,30]
[422776165,1779378646000,-1401.41,0.00027704,30]
[422776046,1779378646000,-887.240915,0.00027397,2]
[422776135,1779378646000,-303.42,0.00027672,7]
[422776109,1779378646000,-1347.46,0.00027612,30]
[422776167,1779378646000,-1347.46,0.00027704,30]
[422776107,1779378646000,-624.08,0.00027612,30]
[422776119,1779378646000,-303.42,0.00027642,2]
[422776057,1779378646000,-2156.77,0.000274,7]
[422776059,1779378646000,-9375.44,0.000274,14]
[422776061,1779378646000,-4957.0,0.000274,7]
[422776063,1779378646000,-204.23653165,0.000275,2]
[422776066,1779378646000,-4957.0,0.000275,7]
[422776075,1779378646000,-623.68,0.00027552,2]
[422776079,1779378646000,-1401.41,0.00027553,2]
[422776077,1779378646000,-1434.51,0.00027553,2]
[422776074,1779378646000,-1347.46,0.00027552,2]
[422776068,1779378646000,-150.0,0.00027546,2]
[422776073,1779378646000,-624.08,0.00027552,2]
[422776071,1779378646000,-304.67,0.00027551,2]
[422776055,1779378646000,-2300.08,0.000274,7]
[422776070,1779378646000,-303.42,0.00027551,2]
[422776083,1779378646000,-304.67,0.00027581,7]
[422776102,1779378646000,-304.67,0.00027611,30]
[422776098,1779378646000,-2137.63779232,0.000276,2]
[422776085,1779378646000,-1346.25,0.00027582,7]
[422776104,1779378646000,-1346.25,0.00027612,30]
[422776096,1779378646000,-1401.41,0.00027583,7]
[422776100,1779378646000,-303.42,0.00027611,30]
[422776089,1779378646000,-1347.46,0.00027582,7]
[422776092,1779378646000,-623.68,0.00027582,7]
[422776087,1779378646000,-624.08,0.00027582,7]
[422776081,1779378646000,-303.42,0.00027581,7]
[422776072,1779378646000,-1346.25,0.00027552,2]
[422776094,1779378646000,-1434.51,0.00027583,7]
[422776258,1779378647000,-1347.46,0.00027856,7]
[422776249,1779378647000,-1434.51,0.00027856,7]
[422776256,1779378647000,-1401.41,0.00027856,7]
[422776247,1779378647000,-304.67,0.00027855,7]
[422776244,1779378647000,-303.42,0.00027855,7]
[422776240,1779378647000,-1434.51,0.00027826,2]
[422776238,1779378647000,-304.67,0.00027825,2]
[422776260,1779378647000,-623.68,0.00027856,7]
[422776232,1779378647000,-303.42,0.00027825,2]
[422776243,1779378647000,-1401.41,0.00027826,2]
[422776236,1779378647000,-623.68,0.00027825,2]
[422776279,1779378647000,-303.42,0.00027916,2]
[422776251,1779378647000,-1346.25,0.00027856,7]
[422776272,1779378647000,-304.67,0.00027886,30]
[422776262,1779378647000,-1346.25,0.00027886,30]
[422776274,1779378647000,-1434.51,0.00027887,30]
[422776276,1779378647000,-1401.41,0.00027887,30]
[422776266,1779378647000,-303.42,0.00027886,30]
[422776268,1779378647000,-1347.46,0.00027886,30]
[422776264,1779378647000,-624.08,0.00027886,30]
[422776270,1779378647000,-623.68,0.00027886,30]
[422776283,1779378647000,-1434.51,0.00027917,2]
[422776234,1779378647000,-1347.46,0.00027825,2]
[422776281,1779378647000,-304.67,0.00027916,2]
[422776253,1779378647000,-624.08,0.00027856,7]
[422776231,1779378647000,-624.08,0.00027825,2]
[422776196,1779378647000,-303.42,0.00027764,7]
[422776227,1779378647000,-500.0,0.000278,7]
[422776285,1779378647000,-1346.25,0.00027917,2]
[422776172,1779378647000,-303.42,0.00027733,2]
[422776176,1779378647000,-1346.25,0.00027734,2]
[422776174,1779378647000,-304.67,0.00027733,2]
[422776178,1779378647000,-624.08,0.00027734,2]
[422776180,1779378647000,-1347.46,0.00027734,2]
[422776183,1779378647000,-623.68,0.00027734,2]
[422776185,1779378647000,-1434.51,0.00027735,2]
[422776189,1779378647000,-200.0,0.00027738,2]
[422776191,1779378647000,-1346.25,0.00027764,7]
[422776187,1779378647000,-1401.41,0.00027735,2]
[422776193,1779378647000,-624.08,0.00027764,7]
[422776205,1779378647000,-1434.51,0.00027765,7]
[422776203,1779378647000,-304.67,0.00027764,7]
[422776198,1779378647000,-1347.46,0.00027764,7]
[422776200,1779378647000,-623.68,0.00027764,7]
[422776207,1779378647000,-1401.41,0.00027765,7]
[422776209,1779378647000,-303.42,0.00027794,30]
[422776211,1779378647000,-304.67,0.00027794,30]
[422776220,1779378647000,-1401.41,0.00027795,30]
[422776225,1779378647000,-623.68,0.00027795,30]
[422776213,1779378647000,-1434.51,0.00027795,30]
[422776229,1779378647000,-1346.25,0.00027825,2]
[422776218,1779378647000,-624.08,0.00027795,30]
[422776222,1779378647000,-1347.46,0.00027795,30]
[422776216,1779378647000,-1346.25,0.00027795,30]
[422776289,1779378647000,-1401.41,0.00027917,2]
[422776287,1779378647000,-624.08,0.00027917,2]
[422776291,1779378647000,-1347.46,0.00027917,2]
[422776367,1779378647000,-304.67,0.00028008,2]
[422776373,1779378647000,-624.08,0.00028038,7]
[422776365,1779378647000,-623.68,0.00028008,2]
[422776361,1779378647000,-1401.41,0.00028008,2]
[422776363,1779378647000,-1347.46,0.00028008,2]
[422776359,1779378647000,-303.42,0.00028008,2]
[422776375,1779378647000,-303.42,0.00028038,7]
[422776378,1779378647000,-1401.41,0.00028038,7]
[422776380,1779378647000,-1347.46,0.00028038,7]
[422776382,1779378647000,-623.68,0.00028038,7]
[422776384,1779378647000,-304.67,0.00028038,7]
[422776394,1779378647000,-1401.41,0.00028069,30]
[422776388,1779378647000,-1346.25,0.00028069,30]
[422776403,1779378647000,-300.0,0.00028096,2]
[422776390,1779378647000,-624.08,0.00028069,30]
[422776396,1779378647000,-1347.46,0.00028069,30]
[422776400,1779378647000,-304.67,0.00028069,30]
[422776405,1779378647000,-300.0,0.00028096,2]
[422776392,1779378647000,-303.42,0.00028069,30]
[422776398,1779378647000,-623.68,0.00028069,30]
[422776407,1779378647000,-300.0,0.00028096,2]
[422776412,1779378647000,-300.0,0.00028096,2]
[422776411,1779378647000,-300.0,0.00028096,2]
[422776409,1779378647000,-300.0,0.00028096,2]
[422776300,1779378647000,-303.42,0.00027947,7]
[422776369,1779378647000,-1434.51,0.00028038,7]
[422776371,1779378647000,-1346.25,0.00028038,7]
[422776386,1779378647000,-1434.51,0.00028069,30]
[422776355,1779378647000,-1346.25,0.00028008,2]
[422776357,1779378647000,-624.08,0.00028008,2]
[422776302,1779378647000,-1401.41,0.00027947,7]
[422776293,1779378647000,-623.68,0.00027917,2]
[422776306,1779378647000,-623.68,0.00027947,7]
[422776296,1779378647000,-1346.25,0.00027947,7]
[422776294,1779378647000,-1434.51,0.00027947,7]
[422776298,1779378647000,-624.08,0.00027947,7]
[422776308,1779378647000,-304.67,0.00027947,7]
[422776312,1779378647000,-624.08,0.00027977,30]
[422776310,1779378647000,-1346.25,0.00027977,30]
[422776314,1779378647000,-303.42,0.00027977,30]
[422776320,1779378647000,-304.67,0.00027977,30]
[422776316,1779378647000,-1347.46,0.00027977,30]
[422776304,1779378647000,-1347.46,0.00027947,7]
[422776322,1779378647000,-1434.51,0.00027978,30]
[422776353,1779378647000,-1434.51,0.00028008,2]
[422776349,1779378647000,-600.0,0.00028,2]
[422776346,1779378647000,-215.23956962,0.00028,7]
[422776351,1779378647000,-2000.0,0.00028,7]
[422776344,1779378647000,-215.23956962,0.00028,10]
[422776342,1779378647000,-215.23956962,0.00028,30]
[422776335,1779378647000,-160.0,0.00028,2]
[422776326,1779378647000,-51616.86791435,0.00028,2]
[422776324,1779378647000,-1401.41,0.00027978,30]
[422776318,1779378647000,-623.68,0.00027977,30]
[422776340,1779378647000,-643.0,0.00028,2]
[422776504,1779378648000,-3613.84859,0.00028408,7]
[422776501,1779378648000,-3613.84859,0.00028408,7]
[422776497,1779378648000,-3613.84859,0.00028408,7]
[422776491,1779378648000,-3613.84859,0.00028408,7]
[422776493,1779378648000,-3613.84859,0.00028408,7]
[422776495,1779378648000,-3613.84859,0.00028408,7]
[422776479,1779378648000,-1285.29,0.00028192,7]
[422776485,1779378648000,-3193.7,0.00028267,2]
[422776483,1779378648000,-9375.44,0.000282,14]
[422776481,1779378648000,-1137.65,0.00028192,7]
[422776463,1779378648000,-2000.0,0.00028188,2]
[422776503,1779378648000,-3613.84859,0.00028408,7]
[422776487,1779378648000,-2156.77,0.000283,7]
[422776489,1779378648000,-3613.84859,0.00028408,7]
[422776531,1779378648000,-300.0,0.0002842,2]
[422776506,1779378648000,-3613.84859,0.00028408,7]
[422776508,1779378648000,-3613.84859,0.00028408,7]
[422776521,1779378648000,-3613.84859,0.00028408,7]
[422776523,1779378648000,-3613.84859,0.00028408,7]
[422776512,1779378648000,-3613.84859,0.00028408,7]
[422776517,1779378648000,-3613.84859,0.00028408,7]
[422776514,1779378648000,-3613.84859,0.00028408,7]
[422776525,1779378648000,-3613.84859,0.00028408,7]
[422776510,1779378648000,-3613.84859,0.00028408,7]
[422776519,1779378648000,-3613.84859,0.00028408,7]
[422776529,1779378648000,-300.0,0.0002842,2]
[422776527,1779378648000,-3613.848596,0.00028408,7]
[422776477,1779378648000,-150.0,0.00028192,2]
[422776499,1779378648000,-3613.84859,0.00028408,7]
[422776465,1779378648000,-2000.0,0.00028188,2]
[422776419,1779378648000,-1346.25,0.00028099,2]
[422776473,1779378648000,-2000.0,0.00028188,2]
[422776533,1779378648000,-300.0,0.0002842,2]
[422776421,1779378648000,-624.08,0.00028099,2]
[422776423,1779378648000,-303.42,0.00028099,2]
[422776413,1779378648000,-300.0,0.00028096,2]
[422776427,1779378648000,-1347.46,0.00028099,2]
[422776415,1779378648000,-188.0,0.00028096,2]
[422776417,1779378648000,-1434.51,0.00028099,2]
[422776425,1779378648000,-1401.41,0.00028099,2]
[422776414,1779378648000,-300.0,0.00028096,2]
[422776440,1779378648000,-624.21,0.0002813,7]
[422776444,1779378648000,-1401.46,0.0002813,7]
[422776442,1779378648000,-303.52,0.0002813,7]
[422776447,1779378648000,-1347.61,0.0002813,7]
[422776460,1779378648000,-2000.0,0.00028188,2]
[422776429,1779378648000,-623.68,0.00028099,2]
[422776436,1779378648000,-1434.63,0.0002813,7]
[422776438,1779378648000,-1346.4,0.0002813,7]
[422776433,1779378648000,-1346.62,0.0002813,7]
[422776449,1779378648000,-623.76,0.0002813,7]
[422776455,1779378648000,-2000.0,0.00028188,2]
[422776453,1779378648000,-2000.0,0.00028188,2]
[422776451,1779378648000,-304.72,0.0002813,7]
[422776457,1779378648000,-2000.0,0.00028188,2]
[422776459,1779378648000,-2000.0,0.00028188,2]
[422776475,1779378648000,-2000.0,0.00028188,2]
[422776471,1779378648000,-2000.0,0.00028188,2]
[422776467,1779378648000,-2000.0,0.00028188,2]
[422776469,1779378648000,-2000.0,0.00028188,2]
[422776432,1779378648000,-304.67,0.00028099,2]
[422776535,1779378648000,-300.0,0.0002842,2]
[422776645,1779378648000,-201.61884773,0.00028755,7]
[422776543,1779378648000,-300.0,0.0002842,2]
[422776607,1779378648000,-201.4513066,0.00028657,7]
[422776610,1779378648000,-163.87334273,0.00028657,7]
[422776605,1779378648000,-205.90478889,0.00028657,7]
[422776628,1779378648000,-209.86295319,0.00028657,7]
[422776626,1779378648000,-160.66870339,0.00028657,7]
[422776614,1779378648000,-213.72085536,0.00028657,7]
[422776616,1779378648000,-204.12877089,0.00028657,7]
[422776620,1779378648000,-168.19156212,0.00028657,7]
[422776624,1779378648000,-173.79792173,0.00028657,7]
[422776630,1779378648000,-151.02245189,0.00028665,2]
[422776618,1779378648000,-174.85789332,0.00028657,7]
[422776632,1779378648000,-2300.08,0.000287,7]
[422776622,1779378648000,-171.52453125,0.00028657,7]
[422776608,1779378648000,-253.33161248,0.00028657,7]
[422776636,1779378648000,-152.0,0.00028717,3]
[422776641,1779378648000,-151.03871039,0.00028755,7]
[422776651,1779378648000,-165.44688069,0.00028755,7]
[422776653,1779378648000,-187.51770095,0.00028756,7]
[422776643,1779378648000,-155.96846803,0.00028755,7]
[422776655,1779378648000,-164.52246267,0.00028756,7]
[422776657,1779378648000,-154.00045525,0.00028756,7]
[422776649,1779378648000,-155.85636107,0.00028755,7]
[422776647,1779378648000,-154.819749,0.00028755,7]
[422776659,1779378648000,-174.98316966,0.00028756,7]
[422776661,1779378648000,-342.17253624,0.00028756,7]
[422776666,1779378648000,-174.83575169,0.00028756,7]
[422776541,1779378648000,-300.0,0.0002842,2]
[422776663,1779378648000,-168.16368989,0.00028756,7]
[422776639,1779378648000,-150.2541229,0.00028755,7]
[422776612,1779378648000,-169.11528886,0.00028657,7]
[422776634,1779378648000,-300.0,0.000287,28]
[422776603,1779378648000,-177.57066,0.00028657,7]
[422776547,1779378648000,-193.0,0.0002842,2]
[422776599,1779378648000,-216.89427533,0.00028657,7]
[422776545,1779378648000,-300.0,0.0002842,2]
[422776539,1779378648000,-300.0,0.0002842,2]
[422776549,1779378648000,-2222.12807938,0.00028437,46]
[422776551,1779378648000,-1025.83151063,0.00028457,2]
[422776559,1779378648000,-3786.09106933,0.00028525,48]
[422776554,1779378648000,-169.89,0.00028493,2]
[422776556,1779378648000,-2000.0,0.00028493,2]
[422776557,1779378648000,-256.55,0.000285,14]
[422776569,1779378648000,-156.00692411,0.00028657,7]
[422776561,1779378648000,-200.0,0.00028536,2]
[422776563,1779378648000,-156.00088262,0.0002865,7]
[422776571,1779378648000,-166.01402603,0.00028657,7]
[422776565,1779378648000,-196.06798669,0.0002865,7]
[422776537,1779378648000,-300.0,0.0002842,2]
[422776597,1779378648000,-170.94296378,0.00028657,7]
[422776601,1779378648000,-163.04038854,0.00028657,7]
[422776593,1779378648000,-168.90159772,0.00028657,7]
[422776590,1779378648000,-171.22090725,0.00028657,7]
[422776595,1779378648000,-182.9448093,0.00028657,7]
[422776567,1779378648000,-157.29935543,0.0002865,7]
[422776586,1779378648000,-174.6739722,0.00028657,7]
[422776588,1779378648000,-193.12525503,0.00028657,7]
[422776583,1779378648000,-194.49966123,0.00028657,7]
[422776581,1779378648000,-179.6212537,0.00028657,7]
[422776579,1779378648000,-178.58767109,0.00028657,7]
[422776575,1779378648000,-166.46716692,0.00028657,7]
[422776573,1779378648000,-157.81113718,0.00028657,7]
[422776577,1779378648000,-205.66246244,0.00028657,7]
[422776749,1779378649000,-742.60594521,0.00029,2]
[422776753,1779378649000,-3580.76086423,0.00029,2]
[422776741,1779378649000,-510.03650428,0.00029,2]
[422776747,1779378649000,-2227.19931053,0.00029,2]
[422776744,1779378649000,-3829.93,0.00029,2]
[422776719,1779378649000,-1005.94,0.00028939,30]
[422776742,1779378649000,-76502.14337533,0.00029,2]
[422776736,1779378649000,-18226.07223455,0.00029,2]
[422776721,1779378649000,-1005.94,0.00028957,30]
[422776723,1779378649000,-177.08328508,0.00028971,2]
[422776734,1779378649000,-419.76984509,0.00029,2]
[422776738,1779378649000,-1011.38,0.00029,2]
[422776751,1779378649000,-9375.44,0.00029,14]
[422776760,1779378649000,-5000.0,0.00029,2]